fUSD/lending_fUSD_20260425
["ID","MTS","AMOUNT","RATE_DAILY","PERIOD"]
[421124967,1777108232966,-673.63237894,0.00010699,2]
[421124968,1777108232976,-673.63237894,0.00010699,2]
[421124969,1777108232985,-673.63237894,0.00010699,2]
[421124970,1777108232995,-673.63237894,0.00010699,2]
[421124971,1777108233005,-673.63237894,0.00010699,2]
[421124972,1777108233015,-673.63237894,0.00010699,2]
[421124973,1777108233024,-673.63237894,0.00010699,2]
[421124974,1777108233035,-673.63237894,0.00010699,2]
[421124975,1777108233045,-673.63237894,0.00010699,2]
[421124976,1777108233055,-673.63237894,0.00010699,2]
[421124977,1777108233065,-673.63237894,0.00010699,2]
[421124978,1777108233074,-673.63237894,0.00010699,2]
[421124979,1777108233084,-673.63237894,0.00010699,2]
[421124980,1777108233094,-673.63237894,0.00010699,2]
[421124981,1777108233103,-673.63237894,0.00010699,2]
[421124982,1777108233113,-673.63237894,0.00010699,2]
[421124983,1777108233122,-673.63237894,0.00010699,2]
[421124984,1777108233132,-673.63237894,0.00010699,2]
[421124985,1777108233141,-673.63237894,0.00010699,2]
[421124986,1777108233150,-673.63237894,0.00010699,2]
[421124987,1777108233160,-673.63237894,0.00010699,2]
[421124988,1777108233169,-673.63237894,0.00010699,2]
[421124989,1777108233179,-673.63237894,0.00010699,2]
[421124990,1777108233189,-673.632379,0.00010699,2]
[421124991,1777108233199,-673.632379,0.00010699,2]
[421124992,1777108233208,-1289.07690345,0.00010699,2]
[421124993,1777108233218,-1289.07690345,0.00010699,2]
[421124994,1777108233228,-1289.07690345,0.00010699,2]
[421124995,1777108233237,-1289.07690345,0.00010699,2]
[421124996,1777108233247,-500.0,0.00010699,2]
[421124997,1777108233257,-500.0,0.00010699,2]
[421124998,1777108233267,-500.0,0.00010699,2]
[421124999,1777108233276,-300.0,0.00010699,2]
[421125000,1777108233286,-500.0,0.00010699,2]
[421125001,1777108233296,-500.0,0.00010699,2]
[421125002,1777108233305,-500.0,0.00010699,2]
[421125003,1777108233316,-500.0,0.00010699,2]
[421125004,1777108233326,-500.0,0.00010699,2]
[421125005,1777108233336,-500.0,0.00010699,2]
[421125006,1777108233345,-500.0,0.00010699,2]
[421125007,1777108233355,-481.10683121,0.00010699,2]
[421125008,1777108233365,-500.0,0.00010699,2]
[421125009,1777108233375,-500.0,0.00010699,2]
[421125010,1777108233385,-154.84318112,0.00010699,2]
[421125011,1777108233394,-404.77093364,0.00010699,2]
[421125012,1777108233403,-465.60852877,0.00010699,2]
[421125013,1777108233413,-318.0889659,0.00010699,2]
[421125014,1777108233423,-509.56384558,0.00010699,2]
[421125015,1777108233432,-311.51115165,0.00010699,2]
[421125016,1777108233442,-1087.74620711,0.00010699,3]
[421125017,1777108233451,-173.0,0.00010699,3]
[421125018,1777108233461,-155.0,0.00010699,3]
[421125019,1777108233470,-1165.0,0.000107,5]
[421125020,1777108233480,-47705.47589745,0.000107,2]
[421125021,1777108233494,-145755.18157376,0.000107,2]
[421125022,1777108239024,-357.39631745,0.000107,2]
[421125023,1777108239036,-77617.0,0.000107,2]
[421125024,1777108239077,-324.58022248,0.000107,2]
[421125025,1777108239239,-1086.8797393,0.000107,2]
[421125027,1777108240659,-1128.17090217,0.000107,2]
[421125028,1777108240765,-2126.84206322,0.000107,2]
[421125029,1777108240777,-483.65945066,0.000107,2]
[421125030,1777108240790,-862.91952571,0.000107,2]
[421125031,1777108240820,-9563.38671446,0.000107,2]
[421125032,1777108240832,-901.67907922,0.000107,2]
[421125033,1777108240845,-258.117,0.000107,2]
[421125034,1777108240857,-750.0,0.000107,2]
[421125035,1777108240874,-1015.96867818,0.000107,2]
[421125036,1777108240929,-1655.35490122,0.000107,2]
[421125037,1777108240942,-2271.31682705,0.000107,2]
[421125063,1777108243386,-70157.09477914,0.000107,2]
[421125064,1777108243645,-57799.2486992,0.000107,2]
[421125072,1777108246315,-1582.5114,0.000107,2]
[421125083,1777108247423,-3894.0,0.000107,2]
[421125085,1777108247439,-10995.533306,0.000107,2]
[421125087,1777108247455,-901.97472321,0.000107,2]
[421125088,1777108247471,-2338.0,0.000107,2]
[421125094,1777109046480,-4972.639356,0.00010432,2]
[421125095,1777109046519,-54.731288,0.00010485,2]
[421125098,1777109431410,-474.41347366,9.615e-05,2]
[421125099,1777109431570,-725.58652634,9.615e-05,2]
[421125100,1777109431580,-300.0,9.615e-05,2]
[421125101,1777109431590,-239.67186083,9.615e-05,2]
[421125102,1777109431602,-60.32813917,9.615e-05,2]
[421125103,1777109431612,-150.0,9.616e-05,2]
[421125104,1777109431622,-150.0,9.616e-05,2]
[421125105,1777109431632,-216.67286913,9.616e-05,2]
[421125106,1777109431641,-298.61525791,9.616e-05,2]
[421125107,1777109431651,-150.0,9.616e-05,2]
[421125108,1777109431661,-150.0,9.616e-05,2]
[421125109,1777109431671,-150.0,9.616e-05,2]
[421125110,1777109431680,-261.05077142,9.616e-05,2]
[421125111,1777109431691,-109.99293565,9.616e-05,2]
[421125112,1777109431782,-40.76363237,9.616e-05,2]
[421125114,1777109431792,-150.0,9.616e-05,2]
[421125116,1777109431803,-150.0,9.616e-05,2]
[421125118,1777109431812,-150.0,9.616e-05,2]
[421125119,1777109431822,-150.0,9.616e-05,2]
[421125120,1777109431831,-150.0,9.655e-05,2]
[421125121,1777109431841,-150.0,9.693e-05,2]
[421125124,1777109431850,-150.0,9.731e-05,2]
[421125125,1777109431860,-150.0,9.75e-05,2]
[421125126,1777109431870,-150.0,9.75e-05,2]
[421125127,1777109431879,-150.0,9.769e-05,2]
[421125128,1777109431889,-150.0,9.769e-05,2]
[421125129,1777109431898,-150.0,9.807e-05,2]
[421125130,1777109431908,-150.0,9.83e-05,2]
[421125131,1777109431918,-150.0,9.845e-05,2]
[421125132,1777109431928,-150.0,9.884e-05,2]
[421125133,1777109431938,-150.0,9.884e-05,2]
[421125134,1777109431948,-150.0,9.884e-05,2]
[421125135,1777109431957,-150.0,9.922e-05,2]
[421125136,1777109431968,-150.0,9.922e-05,2]
[421125137,1777109431977,-150.0,9.96e-05,2]
[421125138,1777109431987,-150.0,9.973e-05,2]
[421125139,1777109431997,-461.0,9.974e-05,2]
[421125140,1777109432007,-343.0,9.986e-05,2]
[421125141,1777109432017,-150.0,9.998e-05,2]
[421125142,1777109432026,-150.0,0.00010017,2]
[421125143,1777109432036,-150.0,0.00010017,2]
[421125144,1777109432046,-150.0,0.00010036,2]
[421125145,1777109432055,-150.0,0.00010044,2]
[421125146,1777109432065,-150.0,0.00010074,2]
[421125147,1777109432076,-150.0,0.00010074,2]
[421125148,1777109432086,-150.0,0.00010113,2]
[421125149,1777109432096,-150.0,0.00010151,2]
[421125150,1777109432106,-150.0,0.00010151,2]
[421125151,1777109432117,-150.0,0.00010151,2]
[421125152,1777109432127,-150.0,0.00010151,2]
[421125153,1777109432137,-150.0,0.00010189,2]
[421125154,1777109432147,-150.0,0.00010227,2]
[421125155,1777109432156,-150.0,0.00010227,2]
[421125156,1777109432166,-150.0,0.00010258,2]
[421125157,1777109432176,-150.0,0.00010258,2]
[421125158,1777109432185,-150.0,0.00010265,2]
[421125159,1777109432195,-150.0,0.00010284,2]
[421125160,1777109432204,-150.0,0.00010284,2]
[421125161,1777109432213,-502.27614845,0.00010303,2]
[421125162,1777109432223,-150.0,0.00010303,2]
[421125163,1777109432232,-150.0,0.00010329,2]
[421125164,1777109432241,-150.0,0.00010341,2]
[421125165,1777109432251,-150.0,0.0001038,2]
[421125166,1777109432260,-150.0,0.0001038,2]
[421125167,1777109432270,-150.0,0.00010418,2]
[421125168,1777109432279,-150.0,0.00010418,2]
[421125169,1777109432289,-150.0,0.00010418,2]
[421125170,1777109432299,-150.0,0.00010456,2]
[421125171,1777109432308,-150.0,0.00010471,2]
[421125172,1777109432318,-578.20924308,0.00010485,2]
[421125173,1777109432327,-226.66833246,0.00010485,2]
[421125174,1777109432336,-150.0,0.00010494,2]
[421125175,1777109432346,-150.0,0.00010532,2]
[421125176,1777109432355,-150.0,0.00010532,2]
[421125177,1777109432364,-150.0,0.00010551,2]
[421125178,1777109432374,-150.0,0.00010551,2]
[421125179,1777109432383,-150.0,0.0001057,2]
[421125180,1777109432393,-250.0,0.00010577,2]
[421125181,1777109432407,-1146.0,0.00010577,2]
[421125182,1777109432416,-2008.46655144,0.000106,2]
[421125183,1777109432427,-5000.0,0.000106,2]
[421125184,1777109432436,-150.0,0.00010609,2]
[421125185,1777109432446,-150.0,0.00010647,2]
[421125186,1777109432455,-250.0,0.00010652,2]
[421125187,1777109432465,-150.0,0.00010685,2]
[421125188,1777109432475,-150.00000001,0.00010685,2]
[421125189,1777109432484,-177.31547693,0.00010685,2]
[421125190,1777109432494,-150.0,0.00010685,2]
[421125191,1777109432504,-150.0,0.00010685,2]
[421125192,1777109432514,-150.0,0.00010685,2]
[421125193,1777109432524,-150.0,0.00010685,2]
[421125194,1777109432534,-150.0,0.00010685,2]
[421125195,1777109432544,-8882.6885148,0.00010693,2]
[421125196,1777109432553,-151.0,0.00010693,2]
[421125197,1777109432563,-194.72792766,0.00010693,2]
[421125198,1777109432573,-174.61919141,0.00010693,2]
[421125199,1777109432582,-464.50893,0.00010693,2]
[421125200,1777109432592,-1517.178,0.00010693,2]
[421125201,1777109432601,-172.298,0.00010693,2]
[421125202,1777109432611,-1328.27659266,0.00010694,2]
[421125203,1777109432620,-200.0,0.00010694,2]
[421125204,1777109432630,-670.58624095,0.00010694,2]
[421125205,1777109432640,-151.0,0.00010694,2]
[421125206,1777109432650,-151.0,0.00010694,2]
[421125207,1777109432659,-151.0,0.00010694,2]
[421125208,1777109432669,-151.0,0.00010694,2]
[421125209,1777109432679,-747.37233328,0.00010694,2]
[421125210,1777109432688,-151.0,0.00010694,2]
[421125211,1777109432698,-151.0,0.00010694,2]
[421125212,1777109432708,-151.0,0.00010694,2]
[421125213,1777109432717,-151.0,0.00010694,2]
[421125214,1777109432727,-151.0,0.00010694,2]
[421125215,1777109432737,-151.0,0.00010694,2]
[421125216,1777109432746,-151.0,0.00010694,2]
[421125217,1777109432756,-151.0,0.00010694,2]
[421125218,1777109432766,-151.0,0.00010694,2]
[421125219,1777109432776,-210.6272682,0.00010694,2]
[421125220,1777109432786,-1138.6392192,0.00010697,2]
[421125221,1777109432796,-22079.93,0.00010699,2]
[421125222,1777109432806,-29290.24,0.00010699,2]
[421125223,1777109432816,-6583.51926269,0.00010699,2]
[421125224,1777109432825,-500.0,0.00010699,2]
[421125225,1777109432835,-186.77478185,0.00010699,2]
[421125226,1777109432844,-70.83592414,0.00010699,2]
[421125227,1777109432858,-429.16407586,0.00010699,2]
[421125228,1777109432869,-500.0,0.00010699,2]
[421125229,1777109432878,-500.0,0.00010699,2]
[421125230,1777109432889,-500.0,0.00010699,2]
[421125231,1777109432899,-500.0,0.00010699,2]
[421125232,1777109432908,-500.0,0.00010699,2]
[421125233,1777109432918,-500.0,0.00010699,2]
[421125234,1777109432929,-500.0,0.00010699,2]
[421125235,1777109432939,-500.0,0.00010699,2]
[421125236,1777109432949,-500.0,0.00010699,2]
[421125237,1777109432958,-500.0,0.00010699,2]
[421125238,1777109432968,-500.0,0.00010699,2]
[421125239,1777109432978,-500.0,0.00010699,2]
[421125240,1777109432988,-500.0,0.00010699,2]
[421125241,1777109432998,-500.0,0.00010699,2]
[421125242,1777109433009,-500.0,0.00010699,2]
[421125243,1777109433018,-500.0,0.00010699,2]
[421125244,1777109433028,-500.0,0.00010699,2]
[421125245,1777109433038,-500.0,0.00010699,2]
[421125246,1777109433048,-500.0,0.00010699,2]
[421125247,1777109433057,-500.0,0.00010699,2]
[421125248,1777109433066,-500.0,0.00010699,2]
[421125249,1777109433077,-500.0,0.00010699,2]
[421125250,1777109433086,-500.0,0.00010699,2]
[421125251,1777109433096,-500.0,0.00010699,2]
[421125252,1777109433105,-500.0,0.00010699,2]
[421125253,1777109433115,-500.0,0.00010699,2]
[421125254,1777109433124,-433.84377258,0.00010699,2]
[421125255,1777109433134,-500.0,0.00010699,2]
[421125256,1777109433144,-500.0,0.00010699,2]
[421125257,1777109433153,-500.0,0.00010699,2]
[421125258,1777109433163,-500.0,0.00010699,2]
[421125259,1777109433172,-500.0,0.00010699,2]
[421125260,1777109433182,-200.0,0.00010699,2]
[421125261,1777109433192,-1177.0,0.000107,5]
[421125262,1777109433201,-1167.0,0.000107,5]
[421125263,1777109433211,-1398.70221579,0.000107,2]
[421125264,1777109433223,-40822.72940944,0.000107,2]
[421125265,1777109433234,-443.39958113,0.000107,2]
[421125272,1777109437797,-179.32690389,0.0001069,2]
[421125273,1777109437807,-1659.50750971,0.000107,2]
[421125274,1777109437827,-981.56,0.000107,2]
[421125275,1777109437842,-603.22941727,0.000107,2]
[421125276,1777109437858,-38356.5,0.000107,2]
[421125277,1777109437982,-4314.53858152,0.000107,2]
[421125278,1777109438074,-387.75,0.000107,2]
[421125325,1777109440054,-62674.99474326,0.000107,2]
[421125326,1777109440162,-765.0,0.000107,2]
[421125338,1777109443107,-5031.70543463,0.000107,2]
[421125339,1777109443120,-359.09560151,0.000107,2]
[421125340,1777109445913,-21713.09925925,0.000107,2]
[421125341,1777109446024,-4708.52,0.000107,2]
[421125348,1777109515687,-1213.742,0.00010486,2]
[421125349,1777109515718,-172.298,0.00010486,2]
[421125350,1777109515749,-2227.93,0.000106,2]
[421125351,1777109515801,-2772.07,0.000106,2]
[421125352,1777109975121,-300.0,0.00010599,2]
[421125353,1777109975151,-150.0,0.00010599,2]
[421125354,1777109975180,-1721.54275836,0.000106,2]
[421125355,1777109975211,-656.92448328,0.000106,2]
[421125356,1777109975285,-4343.07551672,0.000106,2]
[421125359,1777110632072,-300.0,9.7e-05,3]
[421125360,1777110632082,-700.0,9.8e-05,3]
[421125361,1777110632092,-1100.0,9.9e-05,3]
[421125362,1777110632101,-1400.0,0.0001,3]
[421125363,1777110632110,-500.0,0.00010386,2]
[421125364,1777110632120,-2500.0,0.000104,2]
[421125365,1777110632130,-156.0,0.00010485,2]
[421125366,1777110632139,-578.20924308,0.00010486,2]
[421125367,1777110632149,-194.72792766,0.00010486,2]
[421125368,1777110632159,-970.994,0.00010486,2]
[421125369,1777110632168,-172.29868975,0.00010486,2]
[421125371,1777110632177,-179.32690389,0.0001049,2]
[421125372,1777110632187,-200.0,0.00010494,2]
[421125373,1777110632196,-1328.27659266,0.00010494,2]
[421125374,1777110632206,-8882.6885148,0.00010494,2]
[421125375,1777110632215,-151.0,0.00010494,2]
[421125376,1777110632226,-670.58624095,0.00010494,2]
[421125377,1777110632235,-151.0,0.00010494,2]
[421125378,1777110632245,-151.0,0.00010494,2]
[421125379,1777110632255,-151.0,0.00010494,2]
[421125380,1777110632265,-151.0,0.00010494,2]
[421125381,1777110632274,-151.0,0.00010494,2]
[421125382,1777110632284,-151.0,0.00010494,2]
[421125383,1777110632294,-151.0,0.00010494,2]
[421125384,1777110632303,-151.0,0.00010494,2]
[421125385,1777110632313,-151.0,0.00010494,2]
[421125386,1777110632322,-151.0,0.00010494,2]
[421125387,1777110632332,-194.72792766,0.00010494,2]
[421125388,1777110632342,-174.61919141,0.00010494,2]
[421125389,1777110632351,-1093.83820704,0.00010499,3]
[421125390,1777110632360,-1093.83820704,0.00010499,3]
[421125391,1777110632370,-500.0,0.00010499,2]
[421125392,1777110632380,-500.0,0.00010499,2]
[421125393,1777110632390,-507.60294501,0.00010499,2]
[421125394,1777110632400,-500.0,0.00010499,2]
[421125395,1777110632409,-611.08821602,0.00010499,2]
[421125396,1777110632419,-331.83192102,0.00010499,2]
[421125397,1777110632429,-500.0,0.00010499,2]
[421125398,1777110632438,-480.74234729,0.00010499,2]
[421125399,1777110632448,-500.0,0.00010499,2]
[421125400,1777110632457,-500.0,0.00010499,2]
[421125401,1777110632467,-500.0,0.00010499,2]
[421125402,1777110632476,-500.0,0.00010499,2]
[421125403,1777110632486,-500.0,0.00010499,2]
[421125404,1777110632495,-542.4451325,0.00010499,2]
[421125405,1777110632505,-500.0,0.00010499,2]
[421125406,1777110632514,-500.0,0.00010499,2]
[421125407,1777110632524,-500.0,0.00010499,2]
[421125408,1777110632534,-500.0,0.00010499,2]
[421125409,1777110632543,-500.0,0.00010499,2]
[421125410,1777110632553,-500.0,0.00010499,2]
[421125411,1777110632562,-500.0,0.00010499,2]
[421125412,1777110632572,-500.0,0.00010499,2]
[421125413,1777110632582,-500.0,0.00010499,2]
[421125414,1777110632591,-500.0,0.00010499,2]
[421125415,1777110632600,-500.0,0.00010499,2]
[421125416,1777110632610,-500.0,0.00010499,2]
[421125417,1777110632620,-500.0,0.00010499,2]
[421125418,1777110632629,-500.0,0.00010499,2]
[421125419,1777110632639,-267.34793762,0.00010499,2]
[421125420,1777110632649,-500.0,0.00010499,2]
[421125421,1777110632658,-181.9110341,0.00010499,2]
[421125422,1777110632667,-518.1316577,0.00010499,2]
[421125423,1777110632677,-57437.2206224,0.000105,2]
[421125424,1777110632690,-112702.1643105,0.000105,2]
[421125425,1777110632701,-5626.0343716,0.000105,2]
[421125426,1777110632713,-503.70314734,0.000105,2]
[421125427,1777110632724,-4230.82512797,0.000105,2]
[421125451,1777110640335,-19460.93812645,0.000105,2]
[421125452,1777110640381,-554.59764202,0.000105,2]
[421125453,1777110640392,-875.50000001,0.000105,2]
[421125454,1777110640477,-2742.37269276,0.000105,2]
[421125455,1777110640584,-1415.41620489,0.000105,2]
[421125458,1777110643048,-1444.01541444,0.000105,2]
[421125459,1777110643064,-934.97489855,0.000105,2]
[421125460,1777110643105,-5092.73108683,0.000105,2]
[421125461,1777110643369,-214716.34948999,0.000105,2]
[421125466,1777110645879,-3883.24999999,0.000105,2]
[421125467,1777110645935,-12430.712656,0.000105,2]
[421125468,1777110646298,-1065.32192759,0.000105,2]
[421125469,1777110646310,-6181.99346478,0.000105,2]
[421125470,1777110646351,-1761.42095698,0.000105,2]
[421125475,1777110668358,3417.824865,7.945e-05,2]
[421125476,1777110726762,173.0,7.945e-05,3]
[421125477,1777111082238,-241.03,0.00010094,2]
[421125478,1777111082269,-578.20924308,0.0001029,2]
[421125479,1777111082300,-776.795,0.0001029,2]
[421125480,1777111082332,-500.0,0.00010386,2]
[421125481,1777111082363,-1200.0,0.00010399,2]
[421125482,1777111082393,-300.0,0.00010399,2]
[421125483,1777111082658,-4158.2834,0.000104,2]
[421125484,1777111082772,-1073.55984884,0.000104,2]
[421125485,1777111082806,-10000.01,0.000104,2]
[421125486,1777111082820,-10000.01,0.000104,2]
[421125487,1777111082863,-10000.01,0.000104,2]
[421125488,1777111082919,-3505.42175116,0.000104,2]
[421125489,1777111082953,-1475.60807862,0.000104,2]
[421125490,1777111083017,-37.95034044,0.000104,2]
[421125491,1777111083051,-862.20445956,0.000104,2]
[421125492,1777111083081,-3275.60108088,0.000104,2]
[421125493,1777111083133,-1724.39891912,0.000104,2]
[421125494,1777111083167,-3860.9882,0.000104,2]
[421125495,1777111083196,-278.0336,0.000104,2]
[421125496,1777111083240,-1721.9664,0.000104,2]
[421125497,1777111085081,-152.0,0.00010473,7]
[421125498,1777111085114,-670.58624095,0.00010494,2]
[421125499,1777111085147,-1328.27659266,0.00010494,2]
[421125500,1777111085248,-1117.3214852,0.00010494,2]
[421125501,1777111085275,-4580.96284758,0.00010494,2]
[421125502,1777111085313,-3184.40418202,0.00010494,2]
[421125503,1777111085323,-200.0,0.00010494,2]
[421125504,1777111085334,-151.0,0.00010494,2]
[421125505,1777111085344,-194.72792766,0.00010494,2]
[421125506,1777111085356,-174.61919141,0.00010494,2]
[421125507,1777111085366,-151.0,0.00010497,2]
[421125508,1777111085376,-151.0,0.00010497,2]
[421125509,1777111085387,-336.51964311,0.00010499,2]
[421125510,1777111085398,-500.0,0.00010499,2]
[421125511,1777111085408,-554.10063876,0.00010499,2]
[421125512,1777111085418,-500.0,0.00010499,2]
[421125513,1777111085428,-500.0,0.00010499,2]
[421125514,1777111085439,-500.0,0.00010499,2]
[421125515,1777111085449,-500.0,0.00010499,2]
[421125516,1777111085459,-500.0,0.00010499,2]
[421125517,1777111085469,-500.0,0.00010499,2]
[421125518,1777111085479,-196.37199307,0.00010499,2]
[421125519,1777111085490,-88.94493877,0.000105,2]
[421125520,1777111094214,-10000.01,0.000105,2]
[421125521,1777111094311,-10000.01,0.000105,2]
[421125522,1777111094410,-10000.01,0.000105,2]
[421125523,1777111094514,-10000.01,0.000105,2]
[421125524,1777111094619,-10000.01,0.000105,2]
[421125525,1777111094730,-10000.01,0.000105,2]
[421125532,1777111831976,-300.0,9.344e-05,2]
[421125533,1777111831986,-150.0,9.345e-05,2]
[421125534,1777111831995,-150.0,9.345e-05,2]
[421125535,1777111832005,-150.0,9.345e-05,2]
[421125536,1777111832014,-150.0,9.345e-05,2]
[421125537,1777111832024,-150.0,9.345e-05,2]
[421125538,1777111832033,-150.0,9.345e-05,2]
[421125539,1777111832042,-150.0,9.345e-05,2]
[421125540,1777111832052,-150.0,9.345e-05,2]
[421125541,1777111832061,-150.0,9.345e-05,2]
[421125542,1777111832071,-150.0,9.345e-05,2]
[421125543,1777111832080,-150.0,9.425e-05,2]
[421125544,1777111832090,-150.0,9.494e-05,2]
[421125545,1777111832099,-150.0,9.505e-05,2]
[421125546,1777111832109,-150.0,9.518e-05,2]
[421125547,1777111832118,-150.0,9.585e-05,2]
[421125548,1777111832128,-150.0,9.605e-05,2]
[421125549,1777111832138,-150.0,9.642e-05,2]
[421125550,1777111832148,-150.0,9.665e-05,2]
[421125551,1777111832157,-58.63601826,9.691e-05,2]
[421125552,1777111832169,-91.36398174,9.691e-05,2]
[421125553,1777111832179,-150.0,9.745e-05,2]
[421125554,1777111832189,-62.36304778,9.75e-05,2]
[421125555,1777111832201,-393.653476,9.75e-05,2]
[421125556,1777111832212,-249.98347622,9.75e-05,2]
[421125557,1777111832222,-168.0,9.75e-05,2]
[421125558,1777111832232,-53.86257025,9.774e-05,2]
[421125559,1777111832243,-251.13742975,9.774e-05,2]
[421125560,1777111832253,-955.0,9.787e-05,2]
[421125561,1777111832263,-150.0,9.79e-05,2]
[421125562,1777111832272,-302.0,9.793e-05,2]
[421125563,1777111832282,-150.0,9.824e-05,2]
[421125564,1777111832291,-150.0,9.864e-05,2]
[421125565,1777111832301,-150.0,9.864e-05,2]
[421125566,1777111832311,-150.0,9.904e-05,2]
[421125567,1777111832320,-150.0,9.939e-05,2]
[421125568,1777111832330,-150.0,9.984e-05,2]
[421125569,1777111832340,-500.0,9.993e-05,2]
[421125570,1777111832351,-500.0,9.993e-05,2]
[421125571,1777111832361,-500.0,9.993e-05,2]
[421125572,1777111832371,-500.0,9.993e-05,2]
[421125573,1777111832380,-500.0,9.993e-05,2]
[421125574,1777111832390,-500.0,9.993e-05,2]
[421125575,1777111832400,-500.0,9.993e-05,2]
[421125576,1777111832411,-428.21423266,9.993e-05,2]
[421125578,1777111832420,-150.0,9.999e-05,2]
[421125580,1777111832430,-15572.25207965,0.0001,2]
[421125582,1777111832440,-555.55277778,0.0001,2]
[421125583,1777111832449,-166.66583333,0.0001,2]
[421125584,1777111832459,-150.0,0.00010037,2]
[421125586,1777111832470,-150.0,0.00010064,2]
[421125588,1777111832479,-150.0,0.00010087,2]
[421125590,1777111832489,-172.297,0.00010094,2]
[421125592,1777111832499,-1095.554,0.00010094,2]
[421125594,1777111832509,-191.57,0.00010102,2]
[421125596,1777111832518,-150.0,0.00010124,2]
[421125598,1777111832528,-150.0,0.00010144,2]
[421125600,1777111832538,-578.20924308,0.00010164,2]
[421125602,1777111832548,-347.34235397,0.000102,2]
[421125604,1777111832558,-1913.5863,0.000102,2]
[421125606,1777111832568,-151.0,0.00010209,2]
[421125608,1777111832579,-150.0,0.00010211,2]
[421125610,1777111832588,-150.0,0.00010224,2]
[421125612,1777111832598,-150.0,0.00010235,2]
[421125614,1777111832608,-300.0,0.00010279,2]
[421125617,1777111832618,-8882.6885148,0.00010294,2]
[421125619,1777111832628,-151.0,0.00010294,2]
[421125621,1777111832637,-194.72792766,0.00010294,2]
[421125623,1777111832647,-174.61919142,0.00010294,2]
[421125625,1777111832657,-662.19938871,0.00010298,2]
[421125627,1777111832666,-9999.99,0.00010298,2]
[421125629,1777111832676,-5492.29,0.00010298,2]
[421125631,1777111832685,-299.99,0.00010298,2]
[421125633,1777111832695,-49782.97,0.00010298,2]
[421125635,1777111832704,-2960.24,0.00010298,2]
[421125637,1777111832714,-150.99,0.00010298,2]
[421125639,1777111832723,-999.99,0.00010298,2]
[421125641,1777111832733,-9999.99,0.00010298,2]
[421125643,1777111832743,-235.56375017,0.00010299,2]
[421125645,1777111832753,-500.0,0.00010299,2]
[421125647,1777111832763,-500.0,0.00010299,2]
[421125649,1777111832773,-500.0,0.00010299,2]
[421125651,1777111832782,-500.0,0.00010299,2]
[421125653,1777111832792,-500.0,0.00010299,2]
[421125655,1777111832801,-500.0,0.00010299,2]
[421125657,1777111832811,-500.0,0.00010299,2]
[421125659,1777111832820,-500.0,0.00010299,2]
[421125661,1777111832830,-500.0,0.00010299,2]
[421125663,1777111832839,-500.0,0.00010299,2]
[421125665,1777111832849,-500.0,0.00010299,2]
[421125667,1777111832859,-500.0,0.00010299,2]
[421125668,1777111832869,-500.0,0.00010299,2]
[421125669,1777111832878,-500.0,0.00010299,2]
[421125670,1777111832887,-500.0,0.00010299,2]
[421125671,1777111832898,-500.0,0.00010299,2]
[421125672,1777111832907,-500.0,0.00010299,2]
[421125673,1777111832917,-500.0,0.00010299,2]
[421125674,1777111832927,-500.0,0.00010299,2]
[421125675,1777111832936,-500.0,0.00010299,2]
[421125676,1777111832946,-500.0,0.00010299,2]
[421125677,1777111832955,-500.0,0.00010299,2]
[421125678,1777111832965,-500.0,0.00010299,2]
[421125679,1777111832974,-500.0,0.00010299,2]